fUST/lending_fUST_20251117
["ID","MTS","AMOUNT","RATE_DAILY","PERIOD"]
[394202167,1763375441736,-1000.0,0.00023861,2]
[394202168,1763375441745,-1000.0,0.00023861,2]
[394202169,1763375441755,-1000.0,0.00023861,2]
[394202170,1763375441764,-500.0,0.00023861,2]
[394202171,1763375441774,-1000.0,0.00023861,2]
[394202172,1763375441784,-500.0,0.00023861,2]
[394202173,1763375441793,-1000.0,0.00023861,2]
[394202174,1763375441803,-500.0,0.00023861,2]
[394202175,1763375441812,-1000.0,0.00023861,2]
[394202176,1763375441821,-500.0,0.00023861,2]
[394202177,1763375441831,-1000.0,0.00023861,2]
[394202178,1763375441840,-500.0,0.00023861,2]
[394202179,1763375441850,-500.0,0.00023861,2]
[394202180,1763375441859,-500.0,0.00023861,2]
[394202181,1763375441869,-500.0,0.00023861,2]
[394202182,1763375441879,-4429.14990453,0.00023861,2]
[394202183,1763375441888,-500.0,0.00023861,2]
[394202184,1763375441897,-500.0,0.00023861,2]
[394202185,1763375441907,-510.41686513,0.00023861,2]
[394202186,1763375441916,-151.0,0.000239,8]
[394202187,1763375441926,-151.0,0.000239,10]
[394202188,1763375441936,-4593.02845099,0.00023916,2]
[394202189,1763375441945,-4762.97050368,0.00023971,2]
[394202190,1763375441955,-1726.59010579,0.00024,2]
[394202191,1763375441964,-463.12333871,0.00024,2]
[394202192,1763375441974,-4939.20041232,0.00024026,2]
[394202193,1763375441983,-153.92795999,0.00024027,2]
[394202194,1763375441993,-152.84775426,0.00024027,2]
[394202195,1763375442002,-5121.95082757,0.00024081,2]
[394202196,1763375442012,-500.0,0.00024109,2]
[394202197,1763375442021,-5311.46300819,0.00024136,2]
[394202198,1763375442031,-389417.61192187,0.00024142,2]
[394202199,1763375442040,-300.0,0.00024173,2]
[394202200,1763375442049,-5507.9871395,0.00024191,2]
[394202201,1763375442058,-1387.68437399,0.00024246,2]
[394202202,1763375442068,-2572.30844659,0.00024526,2]
[394202203,1763375442077,-116762.72740375,0.0002465,2]
[394202204,1763375442087,-2000.0,0.00024651,7]
[394202205,1763375442096,-285.0,0.00024683,2]
[394202206,1763375442179,-16754.58798679,0.00024774,2]
[394202207,1763375442190,-400.67432439,0.00024783,2]
[394202208,1763375442200,-648.50206079,0.00024791,2]
[394202209,1763375442210,-2586.8731912,0.000248,2]
[394202210,1763375442219,-186.459,0.00024873,8]
[394202211,1763375442228,-161.67957445,0.0002488,2]
[394202212,1763375442237,-161.67957445,0.0002489,2]
[394202214,1763375442246,-151.0,0.0002489,7]
[394202216,1763375442256,-157.559401,0.0002489,7]
[394202217,1763375442266,-151.0,0.000249,7]
[394202218,1763375442276,-151.0,0.000249,7]
[394202219,1763375442286,-474.001153,0.000249,7]
[394202221,1763375442296,-474.001153,0.000249,7]
[394202222,1763375442306,-474.001153,0.000249,7]
[394202223,1763375442315,-474.001153,0.000249,7]
[394202224,1763375442325,-268.524759,0.000249,2]
[394202225,1763375442336,-151.0,0.000249,7]
[394202226,1763375442346,-151.0,0.000249,7]
[394202227,1763375442356,-1981.912455,0.000249,7]
[394202228,1763375442365,-1981.912455,0.000249,7]
[394202229,1763375442374,-1981.912455,0.000249,7]
[394202230,1763375442383,-1981.912455,0.000249,7]
[394202231,1763375442393,-266.908413,0.000249,7]
[394202232,1763375442403,-266.908413,0.000249,7]
[394202233,1763375442412,-266.908413,0.000249,7]
[394202234,1763375442422,-266.908413,0.000249,7]
[394202235,1763375442431,-151.0,0.000249,7]
[394202236,1763375442442,-483.003461,0.000249,2]
[394202237,1763375442451,-151.0,0.000249,7]
[394202238,1763375442462,-483.003461,0.000249,2]
[394202239,1763375442471,-151.0,0.000249,7]
[394202240,1763375442481,-151.0,0.000249,7]
[394202241,1763375442490,-483.003461,0.000249,2]
[394202242,1763375442499,-483.003461,0.000249,2]
[394202243,1763375442509,-215.302145,0.000249,7]
[394202244,1763375442519,-215.302145,0.000249,7]
[394202245,1763375442527,-215.302145,0.000249,7]
[394202246,1763375442537,-215.302145,0.000249,7]
[394202247,1763375442547,-151.0,0.000249,7]
[394202248,1763375442556,-142725.67169663,0.000249,2]
[394202249,1763375442697,-3e-08,0.00014886,2]
[394202252,1763375443631,-60.27186026,0.00014886,2]
[394202254,1763375446479,-439.72813971,0.00014886,2]
[394202255,1763375446488,-193.96,0.00020084,3]
[394202256,1763375446498,-387.92,0.00021454,3]
[394202257,1763375446508,-8557.79186029,0.000249,2]
[394202259,1763375446611,-17.47818226,0.000249,2]
[394202265,1763375606103,569.58,0.00012329,2]
[394202267,1763375616767,474.65,0.00012329,2]
[394202268,1763375627206,395.54,0.00012329,2]
[394202270,1763375637603,329.62,0.00012329,2]
[394202271,1763375648010,274.68,0.00012329,2]
[394202272,1763375658529,228.9,0.00012329,2]
[394202273,1763375668941,573.0,0.00012329,2]
[394202274,1763375690004,228.34440079,0.00016428,3]
[394202275,1763375690028,10.40559921,0.00016428,3]
[394202276,1763375700837,716.28,0.00012329,2]
[394202279,1763375768116,697.928245,0.00013699,2]
[394202286,1763376212387,318.33,0.00012329,2]
[394202287,1763376223012,265.27,0.00012329,2]
[394202288,1763376233634,221.06,0.00012329,2]
[394202289,1763376244284,184.22,0.00012329,2]
[394202290,1763376254702,153.52,0.00012329,2]
[394202292,1763376265156,767.6,0.00012329,2]
[394202293,1763376436243,-195.54,0.00014535,2]
[394202294,1763376436264,-195.53,0.00014535,2]
[394202295,1763376436285,-190.21519117,0.00014589,2]
[394202296,1763376436305,-59.00980562,0.00014748,2]
[394202297,1763376456306,-590.63348671,0.00014649,2]
[394202298,1763376458970,-469.36203381,0.00014649,2]
[394202299,1763376461566,-315.0943809,0.00014649,2]
[394202300,1763376549104,-196.11910904,0.00014549,2]
[394202301,1763376549124,-3654.98695178,0.00014649,2]
[394202302,1763376549144,-180.55003693,0.00014649,2]
[394202303,1763376549165,-300.0,0.00014746,2]
[394202304,1763376549185,-1200.0,0.00014747,2]
[394202305,1763376549204,-240.99019438,0.00014748,2]
[394202306,1763376549224,-300.0,0.00014748,2]
[394202307,1763376549244,-300.0,0.00014748,2]
[394202308,1763376549264,-1200.0,0.00014748,2]
[394202309,1763376549284,-329.06118633,0.00014748,2]
[394202310,1763376552119,-12.14192365,0.00014748,2]
[394202311,1763376552139,-500.0,0.00014748,2]
[394202312,1763376552160,-500.0,0.00014748,2]
[394202313,1763376552183,-153.62628009,0.00014748,2]
[394202338,1763376632053,-222.0,0.00014747,2]
[394202340,1763376632062,-151.11910904,0.00014747,2]
[394202342,1763376632073,-148.88089096,0.00014747,2]
[394202344,1763376632083,-1200.0,0.00014747,2]
[394202346,1763376632092,-238.84217699,0.00014747,2]
[394202348,1763376632101,-500.0,0.00014748,2]
[394202350,1763376632111,-500.0,0.00014748,2]
[394202352,1763376632120,-500.0,0.00014748,2]
[394202354,1763376632128,-374.88983724,0.00014748,2]
[394202356,1763376632137,-500.0,0.00014748,2]
[394202357,1763376632146,-500.0,0.00014748,2]
[394202359,1763376632155,-500.0,0.00014748,2]
[394202360,1763376632164,-306.20402624,0.00014748,2]
[394202361,1763376632175,-193.79597376,0.00014748,2]
[394202362,1763376632184,-156.41177852,0.00014748,2]
[394202363,1763376632193,-500.0,0.00014748,2]
[394202364,1763376632202,-500.0,0.00014748,2]
[394202365,1763376632210,-500.0,0.00014748,2]
[394202366,1763376632219,-500.0,0.00014748,2]
[394202367,1763376632228,-500.0,0.00014748,2]
[394202368,1763376632236,-500.0,0.00014748,2]
[394202369,1763376632246,-500.0,0.00014748,2]
[394202370,1763376632255,-500.0,0.00014748,2]
[394202371,1763376632263,-500.0,0.00014748,2]
[394202372,1763376632272,-500.0,0.00014748,2]
[394202373,1763376632281,-500.0,0.00014748,2]
[394202374,1763376632290,-500.0,0.00014748,2]
[394202375,1763376632298,-500.0,0.00014748,2]
[394202376,1763376632307,-500.0,0.00014748,2]
[394202377,1763376632316,-500.0,0.00014748,2]
[394202378,1763376632325,-500.0,0.00014748,2]
[394202379,1763376632334,-500.0,0.00014748,2]
[394202380,1763376632343,-197.59926084,0.00014748,2]
[394202381,1763376632352,-500.0,0.00014748,2]
[394202382,1763376632361,-500.0,0.00014748,2]
[394202383,1763376632370,-500.0,0.00014748,2]
[394202384,1763376632378,-500.0,0.00014748,2]
[394202385,1763376632387,-500.0,0.00014748,2]
[394202386,1763376632396,-500.0,0.00014748,2]
[394202387,1763376632404,-500.0,0.00014748,2]
[394202388,1763376632413,-500.0,0.00014748,2]
[394202390,1763376632422,-500.0,0.00014748,2]
[394202392,1763376632431,-500.0,0.00014748,2]
[394202394,1763376632440,-500.0,0.00014748,2]
[394202396,1763376632449,-334.14175893,0.00014748,2]
[394202518,1763376637889,-50000.0,0.00014748,2]
[394202519,1763376637899,-500.0,0.00014851,2]
[394202520,1763376637908,-11774.0118381,0.00014852,2]
[394202521,1763376637917,-500.0,0.00014873,2]
[394202522,1763376637926,-500.0,0.00014873,2]
[394202523,1763376637936,-500.0,0.00014881,2]
[394202524,1763376637945,-500.0,0.00014881,2]
[394202525,1763376637954,-500.0,0.00014881,2]
[394202526,1763376637963,-500.0,0.00014883,2]
[394202527,1763376637977,-500.0,0.00014883,2]
[394202528,1763376637986,-500.0,0.00014886,2]
[394202529,1763376637995,-151.0,0.000149,2]
[394202530,1763376638006,-500.0,0.00015022,2]
[394202531,1763376638015,-986.17824138,0.00015181,2]
[394202532,1763376638024,-300.0,0.00015182,2]
[394202533,1763376638036,-300.0,0.00015182,2]
[394202534,1763376638047,-300.0,0.00015182,2]
[394202535,1763376638056,-300.0,0.00015182,2]
[394202536,1763376638066,-300.0,0.00015182,2]
[394202537,1763376638075,-300.0,0.00015182,2]
[394202538,1763376638085,-300.0,0.00015182,2]
[394202539,1763376638094,-300.0,0.00015182,2]
[394202540,1763376638103,-300.0,0.00015182,2]
[394202541,1763376638113,-300.0,0.00015182,2]
[394202542,1763376638123,-300.0,0.00015182,2]
[394202543,1763376638132,-300.0,0.00015182,2]
[394202544,1763376638142,-300.0,0.00015182,2]
[394202545,1763376638151,-300.0,0.00015182,2]
[394202546,1763376638161,-300.0,0.00015182,2]
[394202547,1763376638170,-500.0,0.00015296,2]
[394202548,1763376638180,-94114.28861607,0.0001532,2]
[394202549,1763376638189,-500.0,0.00015373,2]
[394202550,1763376638199,-500.0,0.00015373,2]
[394202551,1763376638208,-500.0,0.00015373,2]
[394202552,1763376638218,-507.90955875,0.00015373,2]
[394202553,1763376638227,-500.81735696,0.00015373,2]
[394202554,1763376638237,-501.96334487,0.00015373,2]
[394202555,1763376638246,-500.0,0.00015373,2]
[394202556,1763376638256,-500.0,0.00015373,2]
[394202557,1763376638265,-500.0,0.00015373,2]
[394202558,1763376638275,-500.0,0.00015373,2]
[394202559,1763376638284,-298.8837198,0.00015373,2]
[394202560,1763376638294,-761.79992184,0.00015421,2]
[394202561,1763376638304,-1016.64132678,0.00015421,2]
[394202562,1763376638314,-600.0,0.00015485,2]
[394202563,1763376638323,-500.0,0.0001557,2]
[394202564,1763376638333,-500.0,0.00015844,2]
[394202565,1763376638343,-151.0,0.000159,2]
[394202566,1763376638353,-1000.0,0.00015921,2]
[394202567,1763376638362,-274.0948081,0.00015921,2]
[394202568,1763376638372,-1001.47190717,0.00015921,2]
[394202569,1763376638382,-1000.0,0.00015921,2]
[394202570,1763376638391,-500.0,0.00016118,2]
[394202571,1763376638401,-1680.0,0.00016144,2]
[394202572,1763376638410,-420.0,0.00016144,2]
[394202573,1763376638420,-1680.0,0.00016222,2]
[394202574,1763376638428,-500.0,0.00016337,2]
[394202575,1763376638438,-912.53,0.00016338,2]
[394202576,1763376638447,-10000.0,0.00016338,2]
[394202577,1763376638456,-500.0,0.00016392,2]
[394202578,1763376638466,-500.0,0.00016437,2]
[394202579,1763376638476,-556.03064536,0.00016438,2]
[394202580,1763376638485,-556.03064536,0.00016438,2]
[394202581,1763376638495,-556.03064536,0.00016438,2]
[394202582,1763376638505,-556.03064536,0.00016438,2]
[394202583,1763376638514,-556.03064536,0.00016438,2]
[394202584,1763376638524,-556.03064536,0.00016438,2]
[394202585,1763376638533,-556.03064536,0.00016438,2]
[394202586,1763376638543,-556.03064536,0.00016438,2]
[394202587,1763376638552,-556.03064536,0.00016438,2]
[394202588,1763376638561,-556.03064536,0.00016438,2]
[394202589,1763376638571,-556.03064536,0.00016438,2]
[394202590,1763376638581,-556.03064536,0.00016438,2]
[394202591,1763376638590,-556.03064536,0.00016438,2]
[394202592,1763376638600,-556.03064536,0.00016438,2]
[394202593,1763376638610,-556.03064536,0.00016438,2]
[394202594,1763376638619,-556.03064536,0.00016438,2]
[394202595,1763376638630,-556.03064536,0.00016438,2]
[394202596,1763376638639,-556.03064536,0.00016438,2]
[394202597,1763376638648,-556.03064536,0.00016438,2]
[394202598,1763376638658,-556.03064536,0.00016438,2]
[394202599,1763376638667,-264.55373416,0.00016452,2]
[394202600,1763376638677,-1500.0,0.00016468,2]
[394202601,1763376638687,-504.37558909,0.00016468,2]
[394202602,1763376638696,-500.0,0.00016473,2]
[394202603,1763376638705,-500.0,0.00016473,2]
[394202604,1763376638715,-500.0,0.00016473,2]
[394202605,1763376638725,-500.4503771,0.00016473,2]
[394202606,1763376638735,-505.03306875,0.00016473,2]
[394202607,1763376638745,-501.3914242,0.00016473,2]
[394202608,1763376638755,-164.0898945,0.00016473,2]
[394202609,1763376638765,-606.11024176,0.00016473,2]
[394202610,1763376638775,-501.0503735,0.00016473,2]
[394202611,1763376638785,-500.83212326,0.00016473,2]
[394202612,1763376638795,-500.0,0.00016473,2]
[394202613,1763376638805,-501.37329497,0.00016473,2]
[394202614,1763376638814,-500.0,0.00016473,2]
[394202615,1763376638824,-500.0,0.00016473,2]
[394202616,1763376638833,-501.19443095,0.00016473,2]
[394202617,1763376638842,-160.0,0.00016474,2]
[394202618,1763376638852,-224.45392559,0.00016589,2]
[394202619,1763376638861,-500.0,0.00016666,2]
[394202620,1763376638871,-151.0,0.000169,2]
[394202621,1763376638881,-395.03358643,0.0001694,2]
[394202622,1763376638890,-1135.24857012,0.0001696,2]
[394202623,1763376638900,-2000.0,0.00017016,2]
[394202624,1763376638910,-1000.0,0.00017021,2]
[394202625,1763376638919,-504.70574074,0.00017021,2]
[394202626,1763376638929,-541.04800509,0.00017021,2]
[394202627,1763376638938,-1000.0,0.00017021,2]
[394202628,1763376638948,-260.0,0.00017022,2]
[394202629,1763376639024,-720.0,0.00017033,2]
[394202630,1763376639034,-1431.38695596,0.00017564,2]
[394202631,1763376639044,-500.0,0.00017568,2]
[394202632,1763376639054,-1500.0,0.00017568,2]
[394202633,1763376639063,-1500.0,0.00017568,2]
[394202634,1763376639072,-360.0,0.0001757,2]
[394202635,1763376639082,-409.0,0.00017673,2]
[394202636,1763376639092,-587.0,0.00017673,2]
[394202637,1763376639102,-2087.0,0.00017844,2]
[394202638,1763376639111,-151.0,0.000179,2]
[394202639,1763376639121,-180.55003691,0.0001799,2]
[394202640,1763376639130,-1355.51592409,0.00018116,2]
[394202641,1763376639139,-2000.0,0.00018116,2]
[394202642,1763376639149,-460.0,0.00018118,2]
[394202643,1763376639158,-286.0,0.00018282,2]
[394202644,1763376639167,-357.0,0.00018464,2]
[394202645,1763376639177,-258.69266,0.00018589,2]
[394202646,1763376639187,-477.42487773,0.00018664,2]
[394202647,1763376639197,-560.0,0.00018665,2]
[394202648,1763376639206,-323.0,0.00018667,2]
[394202649,1763376639216,-864.0,0.00018736,2]
[394202650,1763376639225,-151.0,0.000189,2]
[394202651,1763376639235,-302.48582854,0.000189,2]
[394202652,1763376639244,-1135.24857012,0.00019021,2]
[394202653,1763376639254,-302.48582854,0.00019089,2]
[394202654,1763376639262,-660.0,0.00019213,2]
[394202655,1763376639280,-302.48582854,0.00019278,2]
[394202656,1763376639293,-823.0,0.00019347,2]
[394202657,1763376639304,-303.84671835,0.00019467,2]
[394202658,1763376639314,-760.0,0.00019761,2]
[394202659,1763376639324,-151.0,0.000199,2]
[394202660,1763376639335,-1152.0,0.0002,2]
[394202661,1763376639345,-500.0,0.00020169,2]
[394202662,1763376639354,-697.928245,0.00020187,2]
[394202663,1763376639364,-860.0,0.00020309,2]
[394202664,1763376639374,-175.10504166,0.00020585,2]
[394202665,1763376639383,-699.71974647,0.00020585,2]
[394202666,1763376639393,-292.93139441,0.00020589,2]
[394202667,1763376639402,-1000.0,0.0002061,2]
[394202668,1763376639412,-1000.0,0.000207,2]
[394202669,1763376639421,-1000.0,0.000207,2]
[394202670,1763376639431,-1000.0,0.000207,2]
[394202671,1763376639442,-1000.0,0.000207,2]
[394202672,1763376639451,-1000.0,0.000207,2]
[394202673,1763376639460,-419.87809497,0.00020754,2]
[394202674,1763376639471,-960.0,0.00020857,2]
[394202675,1763376639482,-151.0,0.000209,3]
[394202676,1763376639492,-151.0,0.000209,4]
[394202677,1763376639502,-1135.24857012,0.00021082,2]
[394202678,1763376639512,-1152.0,0.0002118,2]
[394202679,1763376639522,-180.55003691,0.00021331,2]
[394202680,1763376639532,-1060.0,0.00021405,2]
[394202681,1763376639541,-347.40126738,0.00021668,2]
[394202682,1763376639550,-380.18511445,0.00021668,2]
[394202683,1763376639560,-151.0,0.000219,4]
[394202684,1763376639570,-151.0,0.000219,3]
[394202685,1763376639579,-500.0,0.00021917,2]
[394202686,1763376639588,-151.0,0.00021917,7]
[394202687,1763376639598,-151.0,0.00021917,7]
[394202688,1763376639608,-151.0,0.00021917,7]
[394202689,1763376639618,-150.0,0.00021918,2]
[394202690,1763376639627,-300.0,0.00021918,2]
[394202692,1763376639637,-1160.0,0.00021953,2]
[394202694,1763376639646,-500.0,0.00021999,2]
[394202696,1763376639656,-525.41,0.00022,7]
[394202698,1763376639666,-28260.27,0.00022,7]
[394202700,1763376639675,-534.0,0.00022,14]
[394202701,1763376639685,-151.0,0.00022,7]
[394202702,1763376639695,-151.0,0.00022,7]
[394202703,1763376639705,-400.67432439,0.00022,7]
[394202704,1763376639715,-2315.228455,0.00022,7]
[394202705,1763376639724,-345.07192,0.00022,7]
[394202706,1763376639735,-2315.228455,0.00022,7]
[394202707,1763376639744,-345.07192,0.00022,7]
[394202708,1763376639753,-2315.228455,0.00022,7]
[394202709,1763376639763,-345.07192,0.00022,7]
[394202710,1763376639773,-2315.228455,0.00022,7]
[394202711,1763376639782,-345.07192,0.00022,7]
[394202712,1763376639791,-159.828821,0.00022,7]
[394202714,1763376639800,-159.828821,0.00022,7]
[394202716,1763376639809,-519.979803,0.00022,2]
[394202718,1763376639819,-159.828821,0.00022,7]
[394202720,1763376639828,-519.979803,0.00022,2]
[394202722,1763376639837,-159.828821,0.00022,7]
[394202724,1763376639846,-519.979803,0.00022,2]
[394202726,1763376639855,-519.979803,0.00022,2]
[394202728,1763376639864,-251.997791,0.00022,7]
[394202730,1763376639873,-251.997791,0.00022,7]
[394202732,1763376639885,-251.997791,0.00022,7]
[394202734,1763376639895,-251.997791,0.00022,7]
[394202736,1763376639904,-151.0,0.00022,7]
[394202738,1763376639913,-151.0,0.00022,7]
[394202740,1763376639923,-300.0,0.00022466,2]
[394202742,1763376639932,-185.19814475,0.00022501,2]
[394202744,1763376639941,-327.17012882,0.00022589,2]
[394202746,1763376639950,-1000.0,0.00022671,20]
[394202748,1763376639959,-244.0,0.00022671,20]
[394202750,1763376639972,-201.53166973,0.0002274,2]
[394202752,1763376639981,-196.33317148,0.00022809,2]
[394202754,1763376639991,-784.54735322,0.00022809,2]
[394202756,1763376640001,-151.0,0.000229,6]
[394202758,1763376640011,-151.0,0.000229,7]
[394202760,1763376640021,-500.0,0.00023013,2]
[394202761,1763376640030,-450.0,0.00023014,2]
[394202762,1763376640039,-213.62420826,0.00023054,5]
[394202763,1763376640050,-1135.24857012,0.00023143,2]
[394202764,1763376640059,-1355.0,0.00023186,2]
[394202765,1763376640068,-500.0,0.00023335,2]
[394202766,1763376640077,-201.19799445,0.00023714,5]
[394202767,1763376640086,-186.459,0.0002375,4]
[394202768,1763376640095,-202.61990102,0.00023778,5]
[394202769,1763376640104,-570.603194,0.00023861,7]
[394202770,1763376640113,-570.603194,0.00023861,7]
[394202771,1763376640122,-570.603194,0.00023861,7]
[394202772,1763376640131,-570.603194,0.00023861,7]
[394202773,1763376640140,-151.0,0.000239,6]
[394202774,1763376640149,-151.0,0.000239,10]
[394202775,1763376640157,-151.0,0.0002399,7]
[394202776,1763376640166,-151.0,0.0002399,7]
[394202777,1763376640175,-151.0,0.0002399,7]
[394202778,1763376640184,-200.802667,0.0002399,7]
[394202779,1763376640193,-370.31218347,0.00024009,2]
[394202783,1763376640279,-1000.0,0.00024071,2]
[394202784,1763376640288,-1000.0,0.00024071,2]
[394202785,1763376640296,-1000.0,0.00024071,2]
[394202786,1763376640308,-1000.0,0.00024071,2]
[394202787,1763376640317,-1000.0,0.00024071,2]
[394202788,1763376640326,-1000.0,0.00024071,2]
[394202789,1763376640335,-1000.0,0.00024071,2]
[394202790,1763376640344,-1000.0,0.00024071,2]
[394202791,1763376640353,-1000.0,0.00024071,2]
[394202793,1763376640362,-151.0,0.00024071,2]
[394202794,1763376640371,-1000.0,0.00024071,2]
[394202795,1763376640387,-151.0,0.00024071,2]
[394202797,1763376640397,-845.54684014,0.00024071,2]
[394202799,1763376640406,-165.74880417,0.00024071,2]
[394202801,1763376640415,-500.0,0.00024071,2]
[394202803,1763376640424,-1000.0,0.00024071,2]
[394202805,1763376640434,-500.0,0.00024071,2]
[394202807,1763376640443,-500.0,0.00024071,2]
[394202809,1763376640453,-1000.0,0.00024071,2]
[394202811,1763376640462,-500.0,0.00024071,2]
[394202813,1763376640471,-1000.0,0.00024071,2]
[394202815,1763376640481,-500.0,0.00024071,2]
[394202817,1763376640490,-1000.0,0.00024071,2]
[394202819,1763376640499,-500.0,0.00024071,2]
[394202821,1763376640508,-1000.0,0.00024071,2]
[394202824,1763376640521,-500.0,0.00024071,2]
[394202826,1763376640530,-1000.0,0.00024071,2]
[394202828,1763376640539,-500.0,0.00024071,2]
[394202830,1763376640548,-1000.0,0.00024071,2]
[394202832,1763376640557,-1000.0,0.00024071,2]
[394202834,1763376640567,-500.0,0.00024071,2]
[394202836,1763376640576,-1000.0,0.00024071,2]
[394202838,1763376640585,-510.41686513,0.00024071,2]
[394202840,1763376640594,-1000.0,0.00024071,2]
[394202842,1763376640603,-1000.0,0.00024071,2]
[394202844,1763376640612,-4593.02845099,0.00024071,2]
[394202846,1763376640622,-500.0,0.00024109,2]
[394202848,1763376640631,-4762.97050368,0.00024126,2]
[394202850,1763376640640,-151.0,0.00024136,7]
[394202852,1763376640650,-151.0,0.00024136,7]
[394202854,1763376640660,-151.0,0.00024136,7]
[394202856,1763376640670,-151.0,0.00024136,7]
[394202858,1763376640679,-4939.20041232,0.00024181,2]
[394202860,1763376640688,-5121.95082757,0.00024236,2]
[394202862,1763376640697,-5311.46300819,0.00024291,2]
[394202864,1763376640707,-5507.9871395,0.00024346,2]
[394202866,1763376640715,-1387.68437399,0.00024401,2]
[394202868,1763376640724,-361.40886323,0.00024589,2]
[394202870,1763376640735,-200.0,0.00024658,15]
[394202872,1763376640744,-151.0,0.00024658,7]
[394202874,1763376640753,-180.55003691,0.00024672,2]
[394202876,1763376640762,-160.0,0.00024763,2]
[394202878,1763376640771,-160.0,0.00024763,2]
[394202880,1763376640781,-400.67432439,0.00024763,2]
[394202882,1763376640790,-352352.32509716,0.0002477,2]
[394202884,1763376640799,-2315.228455,0.0002477,7]
[394202886,1763376640809,-345.07192,0.0002477,7]
[394202888,1763376640818,-2315.228455,0.0002477,7]
[394202890,1763376640827,-345.07192,0.0002477,7]
[394202892,1763376640836,-2315.228455,0.0002477,7]
[394202894,1763376640845,-345.07192,0.0002477,7]
[394202896,1763376640854,-2315.228455,0.0002477,7]
[394202898,1763376640863,-345.07192,0.0002477,7]
[394202900,1763376640872,-159.828821,0.0002477,7]
[394202902,1763376640881,-159.828821,0.0002477,7]
[394202904,1763376640890,-519.979803,0.0002477,2]
[394202906,1763376640899,-159.828821,0.0002477,7]
[394202908,1763376640908,-519.979803,0.0002477,2]
[394202910,1763376640917,-159.828821,0.0002477,7]
[394202911,1763376640927,-519.979803,0.0002477,2]
[394202913,1763376640936,-519.979803,0.0002477,2]
[394202915,1763376640944,-251.997791,0.0002477,7]
[394202917,1763376640953,-251.997791,0.0002477,7]
[394202919,1763376640963,-251.997791,0.0002477,7]
[394202921,1763376640976,-251.997791,0.0002477,7]
[394202923,1763376640985,-151.0,0.0002477,7]
[394202925,1763376640994,-151.0,0.0002477,7]
[394202927,1763376641003,-151.0,0.0002477,7]
[394202929,1763376641014,-151.0,0.0002477,7]
[394202931,1763376641024,-151.0,0.0002477,7]
[394202933,1763376641033,-151.0,0.0002477,7]
[394202935,1763376641044,-151.0,0.0002477,7]
[394202938,1763376641054,-415.41418685,0.00024771,2]
[394202939,1763376641062,-6812.0637574,0.00024772,2]
[394202941,1763376641071,-151.0,0.00024772,7]
[394202943,1763376641080,-151.0,0.00024772,7]
[394202945,1763376641090,-570.603194,0.00024772,7]
[394202947,1763376641099,-570.603194,0.00024772,7]
[394202949,1763376641108,-570.603194,0.00024772,7]
[394202951,1763376641117,-570.603194,0.00024772,7]
[394202953,1763376641126,-151.0,0.00024772,7]
[394202955,1763376641135,-151.0,0.00024772,7]
[394202957,1763376641144,-277.07032798,0.00024778,2]
[394202959,1763376641153,-514.0330804,0.00024778,2]
[394202961,1763376641162,-275.12595766,0.00024778,2]
[394202963,1763376641171,-1459.12963677,0.00024778,2]
[394202965,1763376641180,-309.73451306,0.00024778,2]
[394202967,1763376641189,-151.0,0.000248,7]